Cogmind - Beta 14 @@@ ROGUE MODE // 2025.03.08 @ 16:32:17 Player: LightKnight Result: Destroyed by Y-45 Defender with Heavy Assault Rifle Performance ------------- Evolutions (1) 500 Regions Visited (3) 600 Robots Destroyed (17) 85 Value Destroyed (472) 472 Prototype IDs (2) 40 Alien Tech Used (0) 0 Bonus (0) 0 TOTAL SCORE: 1697 Bonus ------- None Cogmind --------- Core Integrity 0/400 Matter 265/300 Energy 98/100 System Corruption 2% Temperature Cool (9) Movement Core (50) Location -9/Storage Parts ------- > --- POWER (1) -------- (None) > --- PROPULSION (3) --- (None) > --- UTILITY (3) ------ (None) > --- WEAPON (2) ------- (None) > --- INVENTORY (5) ---- Improved Hover Unit Improved Hover Unit Heat Sink Disposable Heat Sink Small Storage Unit Peak State ------------ > --- POWER ------------ Ion Engine > --- PROPULSION ------- Aluminum Leg Aluminum Leg Aluminum Leg > --- UTILITY ---------- Cooling System Medium Storage Unit Visual Processing Unit > --- WEAPON ----------- Small Laser Assault Rifle > --- INVENTORY -------- Light Treads Light Treads Improved Hover Unit Improved Hover Unit Heat Sink Disposable Heat Sink Small Storage Unit Small Laser [Rating: 12] Favorites ----------- Power Ion Engine Engine Ion Engine Propulsion Aluminum Leg Treads Light Treads Leg Aluminum Leg Utility Small Storage Unit Device Heat Sink Storage Small Storage Unit Processor Visual Processing Unit Weapon Small Laser Energy Gun Small Laser Ballistic Gun Assault Rifle Build | -11 -10 -9 -9 ------- Run | Yrd Mat Mat Sto Slots Evolved 2 | . . 2 . Power . | . . . . Propulsion 1 | . . 1 . Utility 1 | . . 1 . Weapon . | . . . . Parts Attached 11 | 1 2 5 3 Power 1 | . 1 . . Engine 1 | . 1 . . Core . | . . . . Reactor . | . . . . Propulsion 3 | . . 1 2 Treads 2 | . . . 2 Leg 1 | . . 1 . Wheel . | . . . . Hover . | . . . . Flight . | . . . . Utility 5 | . 1 4 . Device 3 | . 1 2 . Storage 1 | . . 1 . Processor 1 | . . 1 . Hackware . | . . . . Protection . | . . . . Artifact . | . . . . Weapon 2 | 1 . . 1 Energy Gun 2 | 1 . . 1 Energy Cannon . | . . . . Ballistic Gun . | . . . . Ballistic Cannon . | . . . . Launcher . | . . . . Special Weapon . | . . . . Impact Weapon . | . . . . Slashing Weapon . | . . . . Piercing Weapon . | . . . . Special Melee Weapon . | . . . . Unidentified Prototypes . | . . . . Parts Lost 6 | . 1 . 5 Power 2 | . 1 . 1 Propulsion 2 | . . . 2 Utility . | . . . . Weapon 2 | . . . 2 Highest Loss Streak 5 | . 1 . 5 To Critical Strikes . | . . . . Average Slot Usage (%) 91 | . 94 99 78 Engine 11 | . 13 11 7 Treads 1 | . . . 6 Leg 27 | . 28 33 20 Device 10 | . 9 14 9 Storage 12 | . 14 11 9 Processor 4 | . . 7 9 Energy Gun 11 | . 14 11 8 Ballistic Gun 11 | . 14 11 8 Peak Build Rating 12 | 6 7 12 12 Average Rating 8 | 6 6 10 9 On Entrance 7 | 6 6 7 12 Naked Turns 21 | . . . 21 Heaviest Build 20 | 11 14 20 20 Greatest Support 40 | 20 20 30 40 Greatest Overweight (x) . | . . . . Average Overweight (x) . | . . . . Largest Inventory Capacity 10 | 8 8 10 10 Average Capacity 8 | 8 8 8 9 Most Carried 9 | 6 7 9 9 Average Carried 6 | 6 6 6 7 Final Capacity 10 | 8 8 10 5 Final Carried 9 | 6 6 9 5 Class Distribution -------------------- 100% | Mutant Dominant Class ---------------- Mutant | -10/Materials Mutant | -9/Materials Mutant | -9/Storage Resources | -11 -10 -9 -9 ----------- Run | Yrd Mat Mat Sto Matter Collected 384 | 171 105 48 60 Remotely . | . . . . Salvage Created 417 | . 143 48 226 Parts 28 | . 7 8 13 Haulers Intercepted . | . . . . Recyclers Shooed . | . . . . Parts Field Recycled . | . . . . Retrieved Matter . | . . . . Parts Self-Destructed . | . . . . Prevented . | . . . . Kills | -11 -10 -9 -9 ------- Run | Yrd Mat Mat Sto Combat Hostiles Destroyed 16 | . 6 4 6 Guns 13 | . 3 4 6 AOE 3 | . 3 . . Classes Destroyed 4 | . 3 . 1 Watcher 1 | . 1 . . Swarmer 8 | . 3 4 1 Grunt 7 | . 3 . 4 Sentry 1 | . . . 1 Best Kill Streak 6 | . 4 4 6 Combat Bots Only 6 | . 4 4 6 Max Kills in Single Turn 3 | . 3 1 1 Gunslinging . | . . . . Exploded 3 | . 3 . . Melee . | . . . . Uniques/NPCs Destroyed . | . . . . Combat | -11 -10 -9 -9 -------- Run | Yrd Mat Mat Sto Hostile Shots Fired 147 | . 34 12 101 Missed 39 | . 15 7 17 Damage Taken 1328 | . 277 41 1010 Core 550 | . 141 25 384 Absorbed by Shields . | . . . . Core Remaining (%) 71 | 100 43 . . Volleys Fired 49 | . 17 10 22 Largest 2 | . 2 2 2 Hottest 60 | . 60 60 60 Shots Fired 94 | . 34 18 42 Gun 94 | . 34 18 42 Cannon . | . . . . Launcher . | . . . . Special . | . . . . Kinetic 48 | . 17 10 21 Thermal 46 | . 17 8 21 Explosive . | . . . . Electromagnetic . | . . . . Robot Hit Streak 9 | . 6 3 9 Robot Miss Streak 4 | . 2 4 4 Penetration Max . | . . . . Secondary Targets 6 | . . 2 4 Max Gunslinging Chain 1 | . . 1 1 Shots Hit Robots 60 | . 23 8 29 Core Hits 21 | . 7 4 10 Critical Kills . | . . . . Critical Parts Destroyed 1 | . . 1 . Critical Strikes 1 | . . 1 . Destroy 1 | . . 1 . Melee Attacks . | . . . . Impact . | . . . . Slashing . | . . . . Piercing . | . . . . Sneak Attacks . | . . . . Combat Hostiles . | . . . . Follow-up Attacks . | . . . . Damage Inflicted 1114 | . 654 110 350 Guns 735 | . 275 110 350 Cannons . | . . . . Explosions 379 | . 379 . . Melee . | . . . . Ramming . | . . . . Kinetic 430 | . 156 77 197 Thermal 684 | . 498 33 153 Explosive . | . . . . Electromagnetic . | . . . . Impact . | . . . . Slashing . | . . . . Piercing . | . . . . Highest Corruption 2 | . 2 . 2 Average Corruption 2 | . 2 . 2 Corruption Purged . | . . . . Corruption Blocked . | . . . . Effects 2 | . 2 . . Message Errors 1 | . 1 . . Data Loss (minor) 1 | . 1 . . Overload Shots . | . . . . Overflow Damage 220 | . 220 . . Projectiles . | . . . . Explosions 220 | . 220 . . Melee . | . . . . Knockbacks . | . . . . Impact . | . . . . Kinetic . | . . . . Secondary . | . . . . Self-Inflicted Damage 88 | . 88 . . Shots 1 | . 1 . . Rammed 1 | . . . 1 Targets Rammed 1 | . . . 1 Kicked . | . . . . Crushed . | . . . . Highest Temperature 18 | . 18 . 8 Average Temperature 11 | . 12 . 8 Received Heat Transfer 501 | . 81 . 420 Siege Activations . | . . . . Robots Corrupted . | . . . . Combat Hostiles . | . . . . Parts Fried . | . . . . Impact Corruptions . | . . . . Robots Melted . | . . . . Combat Hostiles . | . . . . Parts Melted . | . . . . Heat Transferred 900 | . 475 75 350 Parts Sabotaged . | . . . . Parts Stolen . | . . . . Parts Stripped . | . . . . Power Chain Reactions . | . . . . Alert | -11 -10 -9 -9 ------- Run | Yrd Mat Mat Sto Peak Influence 274 | . 232 187 274 Initial 97 | . . 97 78 Average 139 | . 123 162 151 Maximum Alert Level 1 | . 1 . 1 Low Security (%) 69 | 100 50 100 73 Level 1 30 | . 49 . 26 Level 2 . | . . . . Level 3 . | . . . . Level 4 . | . . . . Level 5 . | . . . . High Security . | . . . . Max Security . | . . . . Squads Dispatched 3 | . . . 3 Investigation 1 | . . . 1 Extermination . | . . . . Reinforcement 1 | . . . 1 Assault . | . . . . Garrison 1 | . . . 1 Intercept . | . . . . Searches Triggered . | . . . . Construction Impeded . | . . . . Haulers Reinforced . | . . . . Active Scanning Responses . | . . . . Cargo Convoy Interrupts . | . . . . Stealth | -11 -10 -9 -9 --------- Run | Yrd Mat Mat Sto Distress Signals 3 | . 2 . 1 Communications Jammed . | . . . . Distress Signals . | . . . . Times Spotted 30 | . 10 4 16 Peak Tracking Total 7 | . 6 4 7 Tactical Retreats 1 | . . . 1 Traps | -11 -10 -9 -9 ------- Run | Yrd Mat Mat Sto Traps Triggered 1 | . 1 . . Indirectly . | . . . . Trap Hack Attempts . | . . . . Triggered . | . . . . Disarmed . | . . . . Reprogrammed . | . . . . Reused . | . . . . Traps Extracted . | . . . . Installed . | . . . . Triggered . | . . . . Objects Rigged 1 | . 1 . . Exploded 1 | . 1 . . Machines | -11 -10 -9 -9 ---------- Run | Yrd Mat Mat Sto Machines Disabled 2 | . 2 . . Max in Single Turn 2 | . 2 . . Machines Repaired . | . . . . Machines Dismantled . | . . . . Machines Sabotaged 1 | . . . 1 Overloaded Fab Kills . | . . . . Hacking | -11 -10 -9 -9 --------- Run | Yrd Mat Mat Sto Machines Accessed 3 | . 2 . 1 Terminals 3 | . 2 . 1 Fabricators . | . . . . Repair Stations . | . . . . Recycling Units . | . . . . Scanalyzers . | . . . . Garrison Access . | . . . . Total Hacks 6 | . 4 . 2 Successful 4 | . 3 . 1 Failed 2 | . 1 . 1 Catastrophic . | . . . . Database Lockouts . | . . . . Manual 3 | . 1 . 2 Terminals 6 | . 4 . 2 Fabricators . | . . . . Repair Stations . | . . . . Recycling Units . | . . . . Scanalyzers . | . . . . Garrison Access . | . . . . Terminal Hacks 2 | . 2 . . Prototype ID Bank 1 | . 1 . . Patrol Status 1 | . 1 . . Fabricator Hacks . | . . . . Repair Station Hacks . | . . . . Recycling Unit Hacks . | . . . . Scanalyzer . | . . . . Garrison Access Hacks . | . . . . Unauthorized Hacks 2 | . 1 . 1 Terminals 2 | . 1 . 1 Detonate 1 | . 1 . . Sabotage 1 | . . . 1 Fabricators . | . . . . Repair Stations . | . . . . Recycling Units . | . . . . Scanalyzers . | . . . . Garrison Access . | . . . . Data Cores Recovered . | . . . . Used . | . . . . Hacking Detections 1 | . 1 . . Full Trace Events . | . . . . Feedback Events . | . . . . Feedback Blocked . | . . . . Robot Schematics Acquired . | . . . . Robots Built . | . . . . Authchips . | . . . . Time . | . . . . Total Robot Build Rating . | . . . . Part Schematics Acquired . | . . . . Parts Built . | . . . . Authchips . | . . . . Time . | . . . . Total Part Build Rating . | . . . . Parts Repaired . | . . . . Time . | . . . . Parts Recycled . | . . . . Recycled Matter . | . . . . Retrieved Matter . | . . . . Retrieved Components . | . . . . Parts Scanalyzed . | . . . . Part Schematics Acquired . | . . . . Parts Damaged . | . . . . Bothacking | -11 -10 -9 -9 ------------ Run | Yrd Mat Mat Sto Used RIF Installer . | . . . . Robots Hacked . | . . . . Non-combat . | . . . . Combat . | . . . . Robot Hacks Applied . | . . . . Relay Couplers Released . | . . . . Fabnet Peak Effective % . | . . . . Robots Rewired . | . . . . Allies Hacked . | . . . . Hacks Repelled . | . . . . Allies | -11 -10 -9 -9 -------- Run | Yrd Mat Mat Sto Total Allies . | . . . . Largest Group . | . . . . Highest-Rated Group . | . . . . Highest-Rated Ally . | . . . . Total Orders . | . . . . Ally Attacks . | . . . . Total Damage . | . . . . Kills . | . . . . Allies Corrupted . | . . . . Allies Melted . | . . . . Intel | -11 -10 -9 -9 ------- Run | Yrd Mat Mat Sto Robot Analysis Total . | . . . . Derelict Logs Recovered . | . . . . Drone Launches . | . . . . Drone Recoveries . | . . . . Exploration | -11 -10 -9 -9 ------------- Run | Yrd Mat Mat Sto Turns Passed 520 | 2 258 144 116 Spaces Moved 308 | 1 157 87 63 Core 40 | . . . 40 Treads 1 | . . . 1 Legs 267 | 1 157 87 22 Wheels . | . . . . Hover . | . . . . Flight . | . . . . Fastest Speed 50 | 120 120 120 50 Average Speed 111 | 120 120 120 76 Slowest Speed 160 | 120 120 120 160 Overloaded Moves . | . . . . Propulsion Burnouts . | . . . . Robots Hopped . | . . . . Cave-ins Triggered . | . . . . Exploration Rate (%) 14 | 2 23 6 26 Regions Visited 3 Branch Regions 1 Pre-discovered Areas . | . . . . Known Exits Taken . | . . . . Unknown Exits Taken 3 | 1 1 1 . Scrap Searched . | . . . . Spaces Dug . | . . . . Terrain Destroyed 45 | . 45 . . Melee . | . . . . Projectile . | . . . . AOE 45 | . 45 . . Terrain Rammed . | . . . . Walls Destroyed . | . . . . Machines Disabled . | . . . . Actions | -11 -10 -9 -9 --------- Run | Yrd Mat Mat Sto Total 390 | 1 192 108 89 Wait 16 | . 16 . . Move 305 | . 156 86 63 Hop . | . . . . Pick Up 4 | . 1 3 . Fast Attach 4 | . 1 3 . Attach 5 | . 1 1 3 Detach 2 | . . 2 . Swap 2 | 1 . 1 . Drop 2 | . . 2 . Fire 49 | . 17 10 22 Melee . | . . . . Ram 1 | . . . 1 Kick . | . . . . Crush . | . . . . Escape Stasis . | . . . . Rewire . | . . . . Trap . | . . . . Miscellaneous . | . . . . Route ------- -11/Scrapyard -10/Materials -9/Materials -9/Storage History --------- Turn | Location | Event 3 | -11/Scrapyard | Discovered new exit (range 0) 3 | -11/Scrapyard | Entered Materials 119 | -10/Materials | Core integrity fell below 50% 259 | -10/Materials | Discovered new exit (range 3) 261 | -10/Materials | Entered another Materials area 261 | -9/Materials | Evolved 2 slots: Propulsion x1, Utility x1 311 | -9/Materials | Build established: Mutant 330 | -9/Materials | Discovered new exit (range 15) 405 | -9/Materials | Entered Storage 462 | -9/Storage | Garrison activated, responded to threat 498 | -9/Storage | Core integrity fell below 50% 500 | -9/Storage | Released all parts (7) 513 | -9/Storage | Core integrity fell below 20% 521 | -9/Storage | Destroyed by Y-45 Defender with Heavy Assault Rifle Last Messages --------------- >>Force(Sabotage) SYSTEM_VULNERABLE[Compression Vault] NETWORK_OVERLOAD COORDINATES_RETRIEVED 00500_ ALERT: Suspicious activity at Terminal S003. Dispatching Investigation squad. 00500_ Released Sml. Laser. 00500_ Released Lgt. Treads. 00500_ Released Cooling System. 00500_ Released Visual Processing Unit. 00500_ Released Aluminum Leg. 00500_ Released Med. Storage Unit. 00501_ Slammed into S-10 Pest. 00501_ Destabilizing: System corrupted (+2). 00502_ Acquired 60 matter. 00503_ U-05 Engineer builds a Door. 00505_ R-06 Scavenger inserts Heat Sink into recycling unit. 00514_ K-01 Serf collects debris. 00519_ The unstable cave ceiling collapses. Map ----- +----------------------------------------------------+ | ?????????????????????????????????????????????????? | | ?????????????????????????????????????????????????? | | ?????????????????????????????????????????????????? | | ?????????????????????????????????????????????????# | | ?????????????????????????????????????????#####???# | | ???????????????????????#########+#???????#"""#???# | | ???????????????????????# """ #??????##"T"##### | | ??????????????????????## "Y" #??????# # | | ??????????????????????# " " #??????# """ # | | ?????????????????????## #??????# """ # | | ?????????????????????# ]] #??????# """ # | | ????????????????????## ] ######## / | | ????????????????????# + + """ # | | ?????????????????????## Y ######## """ # | | ?????????????????????# # # ######?????# """ # | | ?????????????????????# #?????# # | | ?????????????????????### #?????###/###### | | ???????????????????????# #???????# #????? | | ???????????????????????# ##########?????# #????? | | ???????????????????????# # #?????# #????? | | ???????????????????????# # #?????# #????? | | ???????????????????????# # #?????? #????? | | ???????????????????????# # #?????? #????? | | ???????????????????????# + #?????? ?????? | | ???????????????????????# # #?????? ?????? | | ???????????????????????# @ # #?????? ?????? | | ???????????????????????+ # #?????? ?????? | | ???????????????????????# # #?????? ?????? | | ???????????????????????# ##########????????????? | | ???????????????????????# #?????????????????????? | | ???????????????????????#k #?????????????????????? | | ???????????????????????# #?????????????????????? | | ???????????????????????# #?????????????????????? | | ???????????????????????# #?????????????????????? | | ???????????????????????# #?????????????????????? | | ???????????????????????# #?????????????????????? | | ???????????????????????# #?????????????????????? | | ???????????????????????# #?????????????????????? | | ??????????????????????? ??????????????????????? | | ???????????????????????? ??????????????????????? | | ???????????????????????? Y ??????????????????????? | | ?????????????????????????????????????????????????? | | ?????????????????????????????????????????????????? | | ?????????????????????????????????????????????????? | | ?????????????????????????????????????????????????? | | ?????????????????????????????????????????????????? | | ?????????????????????????????????????????????????? | | ?????????????????????????????????????????????????? | | ?????????????????????????????????????????????????? | | ?????????????????????????????????????????????????? | +----------------------------------------------------+ Best States ------------- Heat Dissipation 50 Coolant Potential 50 Energy Generation 10 Energy Capacity 250 Matter Stores 300 Matter Capacity 300 Sight Range 18 Terrain Scan Density 10 Evasion (%) 55 Recoil Reduction 2 Item Schematics ----------------- None Robot Schematics ------------------ None Fabricated ------------ Nothing Alien Tech Used ----------------- None Achievements -------------- None Challenges ------------ None Game ------ Seed RelayCompactStorage Manual? 0 Play Time 00:06:24 Cumulative 187.7 hours Start 2025.03.08 @ 16:27:26 End 2025.03.08 @ 16:32:17 Sessions 1 Manual Loads 0 Difficulty Rogue Special Mode None Game No. 133 Rogue 133 Adventurer 0 Explorer 0 Win Type - Total 10 Types 10/0/0/0/0/0/0/0/0 Lore% 76 Gallery% 68 Achievement% 53 Wizard Run 0 Options --------- Layout 2 ASCII 0 Keyboard 1 Movement Arrows Keybinds 0 Fullscreen 1 Font 24/Proggy Map View 50x44 Zoom Use 0% Tactical HUD 1 Map Filters NONE Filters NONE Steam 1 RUN: b6373b4c-fe12-4419-85d9-a087ede5f2d3